Cogmind - Beta 17 @@@ ROGUE MODE // 2026.06.27 @ 23:20:47 Player: LN-5RVR Result: Core destroyed Performance ------------- Evolutions (2) 1000 Regions Visited (4) 800 Robots Destroyed (50) 250 Value Destroyed (1226) 1226 Prototype IDs (2) 40 Alien Tech Used (0) 0 Bonus (21) 21 TOTAL SCORE: 3337 Bonus ------- Follower Combat Kills 21 Cogmind --------- Core Integrity 0/550 Matter 300/300 Energy 100/100 System Corruption 5% Temperature Cool (5) Movement Core (350) Ox6 Location -8/Materials Parts ------- > --- POWER (1) -------- (None) > --- PROPULSION (4) --- (None) > --- UTILITY (3) ------ Large Storage Unit > --- WEAPON (3) ------- (None) > --- INVENTORY (15) --- Light Ion Engine Visual Processing Unit Salvage Targeting Computer Melee Analysis Suite ECM Suite Light Armor Plating Hacking Suite Datajack Blade Trap Peak State ------------ > --- POWER ------------ Light Deuterium Engine > --- PROPULSION ------- Improved Hover Unit Flight Unit Flight Unit > --- UTILITY ---------- Large Storage Unit Improved Targeting Computer Hardened Medium Armor Plating > --- WEAPON ----------- Maul > --- INVENTORY -------- Light Ion Engine Visual Processing Unit Salvage Targeting Computer ECM Suite Light Armor Plating Hardened Light Armor Plating Datajack Blade Trap Blade Trap [Rating: 16] Favorites ----------- Power Ion Engine Engine Ion Engine Propulsion Aluminum Leg Treads Light Treads Leg Aluminum Leg Hover Unit Improved Hover Unit Flight Unit Flight Unit Utility Large Storage Unit Device ECM Suite Storage Large Storage Unit Processor Improved Targeting Computer Protection Hardened Medium Armor Plating Weapon Maul Energy Cannon Particle Cannon Ballistic Gun Light Assault Rifle Ballistic Cannon Light Cannon Impact Weapon Maul Build | -11 -10 -9 -9 -8 ------- Run | Yrd Mat Mat Min Mat Slots Evolved 4 | . . 2 . 2 Power . | . . . . . Propulsion 2 | . . 2 . . Utility 1 | . . . . 1 Weapon 1 | . . . . 1 Parts Attached 33 | 5 6 11 2 9 Power 6 | 1 1 2 1 1 Engine 6 | 1 1 2 1 1 Core . | . . . . . Reactor . | . . . . . Propulsion 13 | 2 2 3 1 5 Treads 4 | . 2 1 . 1 Leg 4 | 2 . 2 . . Wheel . | . . . . . Hover 1 | . . . . 1 Flight 4 | . . . 1 3 Utility 6 | . 2 1 . 3 Device 1 | . 1 . . . Storage 1 | . 1 . . . Processor 1 | . . 1 . . Hackware . | . . . . . Protection 3 | . . . . 3 Artifact . | . . . . . Weapon 8 | 2 1 5 . . Energy Gun . | . . . . . Energy Cannon 2 | . . 2 . . Ballistic Gun 4 | 2 1 1 . . Ballistic Cannon 1 | . . 1 . . Launcher . | . . . . . Special Weapon . | . . . . . Impact Weapon 1 | . . 1 . . Slashing Weapon . | . . . . . Piercing Weapon . | . . . . . Special Melee Weapon . | . . . . . Unidentified Prototypes . | . . . . . Corrupted Parts 1 | . . . . 1 System Corruption 2 | . . . . 2 Parts Lost 19 | . . 7 5 7 Power 4 | . . 2 1 1 Propulsion 8 | . . 3 3 2 Utility 3 | . . . . 3 Weapon 4 | . . 2 1 1 Highest Loss Streak 4 | . . 4 3 3 To Critical Strikes . | . . . . . Average Backups 6 | 2 4 5 6 7 Power . | . 1 . 1 1 Propulsion . | 1 2 . . . Utility 3 | . . 2 4 5 Weapon . | . . . . . Tool/Special . | . . . . . Unused Backups 7 | . . . . 7 Power 1 | . . . . 1 Propulsion . | . . . . . Utility 5 | . . . . 5 Weapon . | . . . . . Tool/Special 1 | . . . . 1 Average Slot Usage (%) 68 | . 87 79 67 45 Engine 7 | . 13 7 7 4 Treads 6 | . 13 10 . 1 Leg 13 | . 14 22 16 . Flight 3 | . . . 2 8 Device 1 | . 8 . . . Storage 9 | . 7 11 11 9 Processor 7 | . . 10 11 7 Protection 1 | . . . . 5 Energy Cannon 1 | . . 3 . . Ballistic Gun 7 | . 28 6 . . Ballistic Cannon 3 | . . 5 7 . Impact Weapon 5 | . . 1 11 8 Peak Build Rating 16 | 5 7 12 12 16 Average Rating 8 | 4 6 9 9 10 On Entrance 6 | . 5 7 11 7 Avg Prop Armor Cover (%) . | . . . . . Naked Turns . | . . . . . Heaviest Build 36 | 8 30 33 33 36 Greatest Support 60 | 20 40 60 30 20 Greatest Overweight (x) 10 | . 7 10 8 10 Average Overweight (x) 1 | . . . 2 3 Largest Inventory Capacity 15 | 5 15 15 15 15 Average Capacity 13 | 5 10 15 15 15 Most Carried 10 | 3 6 7 9 10 Average Carried 6 | 2 4 5 7 9 Final Capacity 15 | 5 15 15 15 15 Final Carried 9 | 3 5 6 9 9 Class Distribution -------------------- 94% | Mutant 5% | Scavenger-Mutant Dominant Class ---------------- Mutant | -10/Materials Mutant | -9/Materials Mutant | -9/Mines Mutant | -8/Materials Resources | -11 -10 -9 -9 -8 ----------- Run | Yrd Mat Mat Min Mat Matter Collected 799 | 250 154 295 30 70 Remotely . | . . . . . Salvage Created 1337 | . 187 606 128 416 Parts 69 | . 16 42 3 8 Haulers Intercepted . | . . . . . Recyclers Shooed . | . . . . . Parts Field Recycled . | . . . . . Retrieved Matter . | . . . . . Parts Self-Destructed . | . . . . . Prevented . | . . . . . Parts Restored . | . . . . . Kills | -11 -10 -9 -9 -8 ------- Run | Yrd Mat Mat Min Mat Combat Hostiles Destroyed 42 | . 6 17 5 14 Melee 11 | . . 1 3 7 Guns 12 | . 6 6 . . Cannons 10 | . . 9 1 . Classes Destroyed 9 | . 4 2 1 2 Worker 1 | . . . . 1 Recycler 1 | . . . 1 . Operator 3 | . 1 2 . . Watcher 3 | . 1 1 . 1 Swarmer 19 | . 3 3 5 8 Grunt 16 | . 3 10 . 3 Brawler 1 | . . . . 1 Duelist 1 | . . 1 . . Sentry 5 | . . 3 . 2 Best Kill Streak 6 | . 4 5 3 6 Combat Bots Only 6 | . 4 5 3 6 Max Kills in Single Turn 1 | . 1 1 1 1 Gunslinging . | . . . . . Exploded . | . . . . . Melee 1 | . . 1 1 1 Uniques/NPCs Destroyed . | . . . . . Combat | -11 -10 -9 -9 -8 -------- Run | Yrd Mat Mat Min Mat Hostile Shots Fired 383 | . 23 145 66 149 Missed 86 | . 5 32 14 35 Hits 297 | . 18 113 52 114 Melee 8 | . . 6 . 2 Projectile 289 | . 18 107 52 112 Critical Strikes 11 | . . 3 1 7 Damage Taken 3393 | . 186 1381 413 1413 Core 946 | . 34 252 109 551 Absorbed by Shields . | . . . . . Core Remaining (%) 65 | 100 86 . 9 . Volleys Fired 110 | . 27 79 4 . Largest 2 | . 2 2 1 . Hottest 136 | . 40 136 30 . Shots Fired 164 | . 54 106 4 . Gun 102 | . 54 48 . . Cannon 62 | . . 58 4 . Launcher . | . . . . . Special . | . . . . . Kinetic 140 | . 54 82 4 . Thermal 24 | . . 24 . . Explosive . | . . . . . Electromagnetic . | . . . . . Robot Hit Streak 16 | . 7 16 2 . Robot Miss Streak 6 | . 6 2 1 . Penetration Max . | . . . . . Secondary Targets 2 | . 1 1 . . Max Gunslinging Chain 1 | . 1 1 . . Shots Hit Robots 159 | . 30 90 9 30 Core Hits 51 | . 14 31 2 4 Critical Kills 1 | . . . . 1 Critical Parts Destroyed 13 | . . . 2 11 Critical Strikes 17 | . . 3 2 12 Blast 2 | . . 2 . . Smash 15 | . . 1 2 12 Melee Attacks 59 | . . 5 10 44 Impact 59 | . . 5 10 44 Slashing . | . . . . . Piercing . | . . . . . Sneak Attacks 3 | . . 1 1 1 Combat Hostiles . | . . . . . Follow-up Attacks . | . . . . . Damage Inflicted 3209 | . 282 1397 318 1212 Guns 589 | . 282 307 . . Cannons 905 | . . 872 33 . Explosions . | . . . . . Melee 1706 | . . 211 285 1210 Ramming 9 | . . 7 . 2 Kinetic 1105 | . 282 790 33 . Thermal 389 | . . 389 . . Explosive . | . . . . . Electromagnetic . | . . . . . Impact 1706 | . . 211 285 1210 Slashing . | . . . . . Piercing . | . . . . . Highest Corruption 5 | . . . . 5 Average Corruption 3 | . . . . 3 Corruption Purged . | . . . . . Corruption Blocked . | . . . . . Effects 5 | . . . . 5 Heat Flow Errors 1 | . . . . 1 Energy Discharges 1 | . . . . 1 Parts Rejected 1 | . . . . 1 Data Loss (minor) 2 | . . . . 2 Overload Shots . | . . . . . Overflow Damage 859 | . . 87 168 604 Projectiles 13 | . . 13 . . Explosions . | . . . . . Melee 846 | . . 74 168 604 Knockbacks 4 | . . 2 1 1 Impact 3 | . . 1 1 1 Kinetic 1 | . . 1 . . Secondary . | . . . . . Self-Inflicted Damage . | . . . . . Shots . | . . . . . Rammed 12 | . . 4 . 8 Targets Rammed 12 | . . 4 . 8 Kicked . | . . . . . Crushed . | . . . . . Highest Temperature 303 | . 18 303 . 196 Average Temperature 89 | . 8 104 . 64 Received Heat Transfer 1035 | . 78 471 . 486 Effects 2 | . . 2 . . Interference 2 | . . 2 . . Siege Activations . | . . . . . Martial Activations . | . . . . . Shielding Activations . | . . . . . Robots Disrupted . | . . . . . Combat Hostiles . | . . . . . Robots Corrupted 10 | . . 1 2 7 Combat Hostiles 8 | . . . 1 7 Parts Fried 17 | . . 1 4 12 Impact Corruptions 34 | . . 3 8 23 Robots Melted 1 | . . 1 . . Combat Hostiles 1 | . . 1 . . Parts Melted 3 | . . 3 . . Heat Transferred 703 | . . 703 . . Parts Sabotaged . | . . . . . Parts Stolen . | . . . . . Parts Stripped . | . . . . . Power Chain Reactions . | . . . . . Alert | -11 -10 -9 -9 -8 ------- Run | Yrd Mat Mat Min Mat Maximum Alert Level . | . . . . . Low Security (%) 100 | 100 100 100 100 100 Level 1 . | . . . . . Level 2 . | . . . . . Level 3 . | . . . . . Level 4 . | . . . . . Level 5 . | . . . . . High Security . | . . . . . Max Security . | . . . . . Peak Influence 180 | . 96 96 74 180 Initial 33 | . . 33 7 4 Average 32 | . 14 39 22 50 Influence Increases 1408 | . 216 506 244 442 Destroy 0b10 Robot/C 900 | . 120 340 160 280 Destroy 0b10 Robot/NC 40 | . 10 15 5 10 Destroy Leader 206 | . 32 82 30 62 Allied During Kill 4 | . . . 4 . Successful Hack 33 | . 9 24 . . Disable Machine 30 | . . 30 . . Lose Combat Pursuer 195 | . 45 15 45 90 Influence Decreases 1284 | . 136 566 251 331 Entered New Map 69 | . . 47 13 9 Time Decay 1015 | . 136 399 218 262 Lost Part 140 | . . 60 20 60 Purge Threat 60 | . . 60 . . Squads Dispatched 6 | . 2 2 . 2 Investigation 1 | . . . . 1 Extermination . | . . . . . Reinforcement 5 | . 2 2 . 1 Assault . | . . . . . Garrison . | . . . . . Intercept . | . . . . . Searches Triggered . | . . . . . Construction Impeded . | . . . . . Haulers Reinforced . | . . . . . Active Scanning Responses . | . . . . . Cargo Convoy Interrupts . | . . . . . Stealth | -11 -10 -9 -9 -8 --------- Run | Yrd Mat Mat Min Mat Distress Signals 6 | . 1 3 . 2 Communications Jammed . | . . . . . Distress Signals . | . . . . . Times Spotted 73 | . 16 23 9 25 Peak Tracking Total 9 | . 4 9 3 8 Tactical Retreats 11 | . 2 1 3 5 ECM-based Alert Blocks 2 | . 2 . . . Traps | -11 -10 -9 -9 -8 ------- Run | Yrd Mat Mat Min Mat Traps Triggered 2 | . 1 . . 1 Indirectly . | . . . . . Trap Hack Attempts . | . . . . . Triggered . | . . . . . Disarmed . | . . . . . Reprogrammed . | . . . . . Reused . | . . . . . Traps Extracted . | . . . . . Installed 1 | . . . . 1 Triggered . | . . . . . Most Traps Carried 2 | . . . 2 2 Machines | -11 -10 -9 -9 -8 ---------- Run | Yrd Mat Mat Min Mat Machines Disabled 2 | . . 2 . . Max in Single Turn 1 | . . 1 . . Machines Repaired . | . . . . . Machines Dismantled . | . . . . . Machines Sabotaged . | . . . . . Overloaded Fab Kills . | . . . . . Hacking | -11 -10 -9 -9 -8 --------- Run | Yrd Mat Mat Min Mat Machines Accessed 11 | . 4 5 . 2 Terminals 10 | . 4 4 . 2 Fabricators . | . . . . . Repair Stations . | . . . . . Recycling Units . | . . . . . Scanalyzers 1 | . . 1 . . Garrison Access . | . . . . . Total Hacks 29 | . 12 13 . 4 Successful 21 | . 9 10 . 2 Failed 8 | . 3 3 . 2 Catastrophic . | . . . . . Database Lockouts . | . . . . . Manual 7 | . 1 4 . 2 Terminals 28 | . 12 12 . 4 Fabricators . | . . . . . Repair Stations . | . . . . . Recycling Units . | . . . . . Scanalyzers 1 | . . 1 . . Garrison Access . | . . . . . Terminal Hacks 19 | . 9 8 . 2 Record 7 | . 5 . . 2 Prototype ID Bank 1 | . . 1 . . Level Access Points 1 | . . 1 . . Emergency Access Points 3 | . 1 2 . . Alert Level 2 | . 2 . . . Unreport Threat 2 | . . 2 . . Locate Traps 1 | . . 1 . . Reinforcement Status 1 | . . 1 . . Hauler Manifests 1 | . 1 . . . Fabricator Hacks . | . . . . . Repair Station Hacks . | . . . . . Recycling Unit Hacks . | . . . . . Scanalyzer 1 | . . 1 . . Retrieve Study 1 | . . 1 . . Garrison Access Hacks . | . . . . . Unauthorized Hacks 1 | . . 1 . . Terminals 1 | . . 1 . . Botnet 1 | . . 1 . . Fabricators . | . . . . . Repair Stations . | . . . . . Recycling Units . | . . . . . Scanalyzers . | . . . . . Garrison Access . | . . . . . Data Cores Recovered . | . . . . . Used . | . . . . . Hacking Detections 8 | . 4 2 . 2 Full Trace Events . | . . . . . Feedback Events . | . . . . . Feedback Blocked . | . . . . . Robot Schematics Acquired . | . . . . . Robots Built . | . . . . . Authchips . | . . . . . Time . | . . . . . Total Robot Build Rating . | . . . . . Part Schematics Acquired . | . . . . . Parts Built . | . . . . . Authchips . | . . . . . Time . | . . . . . Total Part Build Rating . | . . . . . Part Studies Acquired 1 | . . 1 . . Parts Repaired . | . . . . . Time . | . . . . . Parts Recycled . | . . . . . Recycled Matter . | . . . . . Retrieved Matter . | . . . . . Retrieved Components . | . . . . . Parts Scanalyzed . | . . . . . Part Schematics Acquired . | . . . . . Parts Damaged . | . . . . . Bothacking | -11 -10 -9 -9 -8 ------------ Run | Yrd Mat Mat Min Mat Used RIF Installer . | . . . . . Robots Hacked . | . . . . . Non-combat . | . . . . . Combat . | . . . . . Robot Hacks Applied . | . . . . . Relay Couplers Released . | . . . . . Fabnet Peak Effective % . | . . . . . Robots Rewired . | . . . . . Allies Hacked . | . . . . . Hacks Repelled . | . . . . . Allies | -11 -10 -9 -9 -8 -------- Run | Yrd Mat Mat Min Mat Total Allies 1 | . . . 1 . Largest Group 1 | . . . 1 . Highest-Rated Group 31 | . . . 31 . Highest-Rated Ally 31 | . . . 31 . Total Orders . | . . . . . Ally Attacks 4 | . . . 4 . Total Damage 60 | . . . 60 . Kills 3 | . . . 3 . Allies Corrupted . | . . . . . Allies Melted . | . . . . . Intel | -11 -10 -9 -9 -8 ------- Run | Yrd Mat Mat Min Mat Active Infowar (turns) 461 | . 427 34 . . ECM 461 | . 427 34 . . Robot Analysis Total . | . . . . . Derelict Logs Recovered . | . . . . . Drone Launches . | . . . . . Drone Recoveries . | . . . . . Exploration | -11 -10 -9 -9 -8 ------------- Run | Yrd Mat Mat Min Mat Turns Passed 3541 | 112 712 983 756 978 Spaces Moved 1426 | 89 348 463 278 248 Core 52 | 6 1 2 16 27 Treads 385 | . 172 171 . 42 Legs 775 | 83 175 290 227 . Wheels . | . . . . . Hover 19 | . . . . 19 Flight 195 | . . . 35 160 Fastest Speed 50 | 50 120 120 190 194 Average Speed 192 | 115 144 141 255 311 Slowest Speed 680 | 120 400 550 450 680 Overloaded Moves . | . . . . . Propulsion Burnouts . | . . . . . Robots Hopped . | . . . . . Potential Cave-ins . | . . . . . Cave-ins Triggered . | . . . . . Exploration Rate (%) 32 | 4 51 31 52 23 Regions Visited 4 Branch Regions 1 Pre-discovered Areas . | . . . . . Known Exits Taken 1 | . . . 1 . Unknown Exits Taken 3 | 1 1 1 . . Scrap Searched 1 | . . . 1 . Spaces Dug . | . . . . . Terrain Destroyed . | . . . . . Melee . | . . . . . Projectile . | . . . . . AOE . | . . . . . Terrain Rammed . | . . . . . Walls Destroyed . | . . . . . Machines Disabled . | . . . . . Actions | -11 -10 -9 -9 -8 --------- Run | Yrd Mat Mat Min Mat Total 1927 | 96 507 680 301 343 Wait 264 | . 120 112 5 27 Move 1422 | 88 347 462 277 248 Hop . | . . . . . Pick Up 14 | 3 3 3 3 2 Fast Attach 27 | 5 5 8 1 8 Attach 4 | . . 3 . 1 Detach 1 | . . 1 . . Swap 7 | . 4 2 1 . Drop 7 | . 1 1 . 5 Fire 110 | . 27 79 4 . Melee 59 | . . 5 10 44 Ram 7 | . . . . 7 Kick . | . . . . . Crush 4 | . . 4 . . Escape Stasis . | . . . . . Rewire . | . . . . . Trap 1 | . . . . 1 Miscellaneous . | . . . . . Route ------- -11/Scrapyard -10/Materials (discovered 2 exits: *Mat x2) -9/Materials (discovered 4 exits: Mat x3 / [*Min]) -9/Mines -8/Materials History --------- Turn | Location | Event 4 | -11/Scrapyard | Discovered new exit (range 14) 113 | -11/Scrapyard | Entered Materials 304 | -10/Materials | Build established: Mutant 439 | -10/Materials | Discovered new exit (range 10) 763 | -10/Materials | Discovered new exit (range 15) 825 | -10/Materials | Entered another Materials area 825 | -9/Materials | Evolved 2 slots: Propulsion x2 1250 | -9/Materials | Core integrity fell below 50% 1264 | -9/Materials | Lost 4 parts (1p2n1w) 1724 | -9/Materials | Discovered new exit (range 9) 1779 | -9/Materials | Identified exit to Materials 1808 | -9/Materials | Entered Mines 1811 | -9/Mines | Received a Mining Laser from a helpful Derelict 1921 | -9/Mines | Found DCF Scrap (13 items) 2074 | -9/Mines | Discovered exit to Materials (range 11) 2191 | -9/Mines | Found a hidden stash of uninstalled traps 2351 | -9/Mines | Core integrity fell below 20% 2378 | -9/Mines | Lost 3 parts (1p1n1w) 2564 | -9/Mines | Entered Materials 2564 | -8/Materials | Evolved 2 slots: Utility x1, Weapon x1 3368 | -8/Materials | Lost 3 parts (1p2u) 3506 | -8/Materials | Core integrity fell below 50% 3533 | -8/Materials | Core integrity fell below 20% 3542 | -8/Materials | Core destroyed Last Messages --------------- 03393_ K-01 Serf collects debris. 03434_ W-25 Informer sends out distress signal. 03445_ K-01 Serf cleans the Fusion Modulator. 03448_ System corrupted: Energy discharge (-37). 03455_ K-01 Serf cleans the Fusion Modulator. 03457_ Maul destroyed. 03460_ K-01 Serf cleans the Fusion Modulator. 03486_ Acquired Hrd. Medium Armor Plating. 03496_ Critical hit (Burn: +37). 03503_ System corrupted: Hrd. Medium Armor Plating rejected. 03510_ Slammed into Y-45 Defender. 03526_ Hrd. Light Armor Plating destroyed. 03528_ Slammed into Y-45 Defender. 03532_ Critical hit (Burn: +37). 03533_ G-47 Trooper IFF system glitched. 03535_ Slammed into Y-45 Defender. 03541_ Critical hit (Burn: +37). 03542_ Slammed into Y-45 Defender. 03542_ Destabilizing: Core damaged (-27). Map ----- +----------------------------------------------------+ | ?????????????????????????????????????????????????? | | ?????????????????????????????????????????????????? | | ?????????????????????????????????????????????????? | | ?????????????????????????????????????????????????? | | ?????????????????????????????????????????????????? | | ?????????????????????????????????????????????????? | | ?????????????????????????????????????????????????? | | ?????????????????????????????????????????????????? | | ?????????????????????????????????????????????????? | | ?????????????????????????????????????????????????? | | ??????????????????????? ?????????????????????? | | ????????????????????? #????????????????????? | | ????????????????????# #????????????????????? | | ????????????????????? #????????????????????? | | ????????????????????? #????????????????????? | | ?????????????????????? #????????????????????? | | ??????????????????????? #????????????????????? | | ???????????????????????# #????????????????????? | | ???????????????????????# #?????????????""?????? | | ???????????????????????# #????????????"""? #??? | | ???????????????????##### #??????????? """ #??? | | ?????????????????? ] # ########### #??? | | ???????????????????? + g ???? | | ???????????????????????#% """?????? | | ???????????????????????# Y """ ????? | | ???????????????????????# @ u """ ????? | | ???????????????????????# %% k ? | | ???????????????????????# ###;########## # | | ???????????????????????#%# #?????# """ ? | | ???????????????????????# # ! """#?????# """??#?#? | | ???????????????????????# # """#?????# """? #??? | | ???????????????????????# # """#?????# #??? | | ???????????#####???????#%# ! #?????# #??? | | ???????????# #########%# #?????# """ #??? | | ???????????# " %########?????# """ #??? | | ???????????# #########%#????????????# """ #??? | | ???????????## ##???????# ############## #??? | | ????????????# #????????# #??? | | ????????????# #????????# #??? | | ????????????# ########## #??? | | ????????????# ## + #??? | | ???????????## ## """## ######## ##### #??? | | ???????????# =# """## #??????# #???# #??? | | ???????????# =+% """## #??????# #???# #??? | | #??????????# #% ## #??????# #???# ##### #??? | | #??????????## ## ## #####??# #???# #???? #??? | | #???????????# ########## #??# #???# #?????#??? | | #???????????# #????????# #??# #???# #????????? | | #???????????# #????????# ???# #???# #????????? | | ###########?# ####?????? ????# #???# #????????? | +----------------------------------------------------+ Best States ------------- Heat Dissipation 31 Energy Generation 14 Energy Capacity 265 Matter Stores 300 Matter Capacity 300 Sight Range 16 Terrain Scan Density 10 ECM Strength 1 Armor Coverage 375 Evasion (%) 55 Targeting Accuracy 6 Recoil Reduction 3 Item Schematics ----------------- None Robot Schematics ------------------ None Fabricated ------------ Nothing Repaired ---------- Nothing Studied --------- Lgt. Cannon | -9/Materials | Hacked Alien Tech Used ----------------- None Achievements -------------- None Challenges ------------ None Game ------ Seed JammingCobblerBotcube Manual? 0 Play Time 00:28:51 Cumulative 44.8 hours Start 2026.06.27 @ 18:44:18 End 2026.06.27 @ 23:20:47 Sessions 2 Manual Loads 0 Difficulty Rogue Special Mode None Game No. 61 Rogue 29 Adventurer 32 Explorer 0 Win Type - Total 0 Types 0/0/0/0/0/0/0/0/0/0 Lore% 16 Gallery% 23 Achievement% 18 Wizard Run 0 Options --------- Layout 1 ASCII 0 Keyboard 0 Movement Numpad Keybinds 0 Fullscreen 1 Font 24/Smallcaps Map View 50x35 Zoom Use 0% Tactical HUD 1 Map Filters NONE Filters NONE Steam 1 RUN: ce3cff26-5bbc-4a8d-b5a6-68983f528a80